fUSD/lending_fUSD_20260616
["ID","MTS","AMOUNT","RATE_DAILY","PERIOD"]
[425124736,1781539244000,-445.64,0.00010224,2]
[425124738,1781539432000,-218.25378395,0.00010124,2]
[425124739,1781539486000,-250.0,0.00010124,2]
[425124740,1781539540000,-187.84,0.00010107,2]
[425124741,1781539593000,-445.64,0.00010056,2]
[425124742,1781539612000,-445.64,0.00010056,2]
[425124743,1781539631000,-218.25378395,9.986e-05,2]
[425124744,1781539681000,-290.0,9.956e-05,2]
[425124745,1781539699000,-290.0,9.956e-05,2]
[425124746,1781539716000,-300.05,9.956e-05,2]
[425124747,1781539735000,-114.70025523,9.798e-05,2]
[425124750,1781539735000,-180.53,9.971e-05,2]
[425124749,1781539735000,-114.70025523,9.956e-05,2]
[425124751,1781539735000,-3232.8,0.00010056,2]
[425124748,1781539735000,-1737.71974477,9.798e-05,2]
[425124753,1781539735000,-500.0,0.00010115,2]
[425124752,1781539735000,-330.95934294,0.00010086,2]
[425124755,1781539735000,-300.0,0.00010122,2]
[425124754,1781539735000,-150.0,0.00010116,2]
[425124756,1781539735000,-150.0,0.00010122,2]
[425124757,1781539735000,-500.0,0.00010124,2]
[425124758,1781539735000,-2803.29065706,0.00010124,2]
[425124761,1781539737000,-500.0,0.00010114,2]
[425124759,1781539737000,-163.69,0.0001,2]
[425124760,1781539737000,-258.66772007,0.00010114,2]
[425124765,1781539737000,-500.0,0.00010114,2]
[425124764,1781539737000,-300.14067011,0.00010114,2]
[425124762,1781539737000,-500.0,0.00010114,2]
[425124763,1781539737000,-500.0,0.00010114,2]
[425124773,1781539738000,-500.0,0.00010114,2]
[425124769,1781539738000,-500.0,0.00010114,2]
[425124770,1781539738000,-500.0,0.00010114,2]
[425124767,1781539738000,-500.0,0.00010114,2]
[425124768,1781539738000,-500.0,0.00010114,2]
[425124771,1781539738000,-171.93780308,0.00010114,2]
[425124772,1781539738000,-500.0,0.00010114,2]
[425124774,1781539738000,-151.52313596,0.00010114,2]
[425124766,1781539738000,-500.0,0.00010114,2]
[425124776,1781539738000,-500.0,0.00010114,2]
[425124779,1781539738000,-559.36074734,0.00010114,2]
[425124778,1781539738000,-500.0,0.00010114,2]
[425124777,1781539738000,-500.0,0.00010114,2]
[425124780,1781539738000,-608.77221092,0.00010114,2]
[425124781,1781539738000,-285.90771252,0.00010114,2]
[425124782,1781539738000,-94.00338849,0.00010114,2]
[425124784,1781539738000,-478.19518197,0.00010114,2]
[425124783,1781539738000,-500.0,0.00010114,2]
[425124775,1781539738000,-500.0,0.00010114,2]
[425124785,1781539739000,-500.0,0.00010114,2]
[425124786,1781539739000,-470.84159073,0.00010114,2]
[425124787,1781539739000,-333.7345642,0.00010114,2]
[425124788,1781539739000,-166.2654358,0.00010114,2]
[425124789,1781539739000,-158.75956085,0.00010114,2]
[425124790,1781539739000,-500.0,0.00010114,2]
[425124791,1781539739000,-500.0,0.00010114,2]
[425124792,1781539739000,-500.0,0.00010114,2]
[425124793,1781539739000,-500.0,0.00010114,2]
[425124794,1781539739000,-51.74972874,0.00010114,2]
[425124795,1781539739000,-448.25027126,0.00010114,2]
[425124796,1781539739000,-470.28904316,0.00010114,2]
[425124797,1781539740000,-29.71095684,0.00010114,2]
[425124798,1781539740000,-500.0,0.00010114,2]
[425124800,1781539740000,-500.0,0.00010114,2]
[425124799,1781539740000,-500.0,0.00010114,2]
[425124801,1781539740000,-500.0,0.00010114,2]
[425124802,1781539740000,-500.0,0.00010114,2]
[425124805,1781539740000,-500.0,0.00010114,2]
[425124804,1781539740000,-500.0,0.00010114,2]
[425124803,1781539740000,-500.0,0.00010114,2]
[425124812,1781539740000,-500.0,0.00010114,2]
[425124808,1781539740000,-500.0,0.00010114,2]
[425124807,1781539740000,-500.0,0.00010114,2]
[425124809,1781539740000,-500.0,0.00010114,2]
[425124811,1781539740000,-500.0,0.00010114,2]
[425124810,1781539740000,-500.0,0.00010114,2]
[425124815,1781539740000,-500.0,0.00010114,2]
[425124813,1781539740000,-500.0,0.00010114,2]
[425124814,1781539740000,-500.0,0.00010114,2]
[425124806,1781539740000,-500.0,0.00010114,2]
[425124821,1781539741000,-182.6228753,0.00010124,2]
[425124820,1781539741000,-193.0,0.00010124,2]
[425124818,1781539741000,-286.59315809,0.00010124,2]
[425124822,1781539741000,-300.0,0.00010163,2]
[425124817,1781539741000,-213.40684191,0.00010124,2]
[425124816,1781539741000,-756.88220125,0.00010124,2]
[425124819,1781539741000,-300.0,0.00010124,2]
[425124823,1781539741000,-300.0,0.00010163,2]
[425124824,1781539741000,-319.68685379,0.00010163,2]
[425124833,1781539741000,-193.46222184,0.00010299,2]
[425124825,1781539741000,-193.57165506,0.00010163,2]
[425124832,1781539741000,-10000.0,0.00010299,2]
[425124831,1781539741000,-896.5452722,0.00010299,2]
[425124830,1781539741000,-427.57619248,0.00010299,2]
[425124834,1781539741000,-9806.53777816,0.000103,2]
[425124828,1781539741000,-5587.73,0.00010236,2]
[425124827,1781539741000,-500.0,0.00010187,2]
[425124826,1781539741000,-296.57742422,0.00010182,2]
[425124829,1781539741000,-216.09656886,0.00010261,2]
[425124838,1781539742000,-10000.0,0.000103,2]
[425124837,1781539742000,-10000.0,0.000103,2]
[425124836,1781539742000,-9850.0,0.000103,2]
[425124835,1781539742000,-150.0,0.00010113,2]
[425124841,1781539743000,-691.14897044,0.000103,2]
[425124839,1781539743000,-10000.0,0.000103,2]
[425124840,1781539743000,-10000.0,0.000103,2]
[425124842,1781539743000,-178.642021,0.000103,2]
[425124844,1781539743000,-2000.0,0.00010331,2]
[425124845,1781539743000,-764.99,0.00010352,2]
[425124846,1781539743000,-310.01,0.00010353,2]
[425124847,1781539743000,-500.0,0.00010389,2]
[425124843,1781539743000,-1325.0,0.000103,2]
[425124852,1781539752000,500.0,0.00010114,2]
[425124851,1781539752000,500.0,0.00010114,2]
[425124850,1781539752000,500.0,0.00010114,2]
[425124849,1781539752000,500.0,0.00010114,2]
[425124848,1781539752000,500.0,0.00010114,2]
[425124858,1781539753000,500.0,0.00010114,2]
[425124854,1781539753000,500.0,0.00010114,2]
[425124855,1781539753000,500.0,0.00010114,2]
[425124857,1781539753000,269.79099144,0.00010114,2]
[425124856,1781539753000,230.20900856,0.00010114,2]
[425124859,1781539753000,513.08202398,0.00010114,2]
[425124853,1781539753000,500.0,0.00010114,2]
[425124861,1781539753000,500.0,0.00010114,2]
[425124862,1781539753000,500.0,0.00010114,2]
[425124863,1781539753000,500.0,0.00010114,2]
[425124864,1781539753000,500.0,0.00010114,2]
[425124865,1781539753000,500.0,0.00010114,2]
[425124860,1781539753000,500.0,0.00010114,2]
[425124866,1781539753000,500.0,0.00010114,2]
[425124867,1781539755000,500.0,0.00010114,2]
[425124872,1781539757000,-563.0872287,0.00010504,2]
[425124873,1781539757000,-2060.73606397,0.00010508,2]
[425124870,1781539757000,-200.0,0.00010471,2]
[425124869,1781539757000,-500.0,0.00010452,2]
[425124868,1781539757000,-1197.35,0.00010432,2]
[425124871,1781539757000,-500.0,0.00010504,2]
[425124877,1781539765000,-178.52449153,0.00010522,2]
[425124876,1781539765000,-2490.21650069,0.00010522,2]
[425124874,1781539765000,-1687.55393603,0.00010508,2]
[425124875,1781539765000,-802.66256466,0.00010522,2]
[425124881,1781539788000,-2593.39565055,0.00010768,2]
[425124882,1781539788000,-941.08005192,0.00010768,2]
[425124879,1781539788000,-154.17,0.00010589,2]
[425124880,1781539788000,-2408.24920743,0.00010768,2]
[425124878,1781539788000,-30.97644312,0.00010522,2]
[425124883,1781539799000,-10000.0,0.00010768,2]
[425124884,1781539801000,-7183.2450901,0.00010768,2]
[425124885,1781539801000,-2816.7549099,0.00010785,2]
[425124886,1781539802000,-685.6250901,0.00010785,2]
[425124887,1781539802000,-9314.3749099,0.00010879,2]
[425124888,1781539803000,-10000.0,0.00010879,2]
[425124894,1781539804000,-10000.0,0.00010879,2]
[425124893,1781539804000,-3281.84764391,0.00010879,2]
[425124891,1781539804000,-3132.74663371,0.00010124,2]
[425124892,1781539804000,-637.77243753,0.00010124,2]
[425124889,1781539804000,-732.68539863,0.00010124,2]
[425124890,1781539804000,-2214.94788622,0.00010124,2]
[425124895,1781539805000,-10000.0,0.00010879,2]
[425124896,1781539806000,-10000.0,0.00010879,2]
[425124903,1781539807000,-2632.0,0.00011,2]
[425124900,1781539807000,-166.66,0.00010959,2]
[425124902,1781539807000,-446.90917335,0.00010985,2]
[425124901,1781539807000,-150.0,0.00010959,2]
[425124898,1781539807000,-250.0,0.00010919,2]
[425124899,1781539807000,-150.0,0.00010959,2]
[425124897,1781539807000,-573.22744619,0.00010879,2]
[425124904,1781539807000,500.0,0.00010919,2]
[425124905,1781539808000,500.0,0.00010966,2]
[425124915,1781539831000,-150.0,0.00011021,2]
[425124914,1781539831000,-5798.2405027,0.00011006,2]
[425124911,1781539831000,-314.69518012,0.00011006,2]
[425124918,1781539831000,-766.19666073,0.00011048,2]
[425124916,1781539831000,-163.68,0.00011036,2]
[425124912,1781539831000,-287.06431718,0.00011006,2]
[425124917,1781539831000,-2736.18333927,0.00011048,2]
[425124970,1781539832000,-250.0,0.00011967,2]
[425124972,1781539832000,-500.0,0.00011967,2]
[425124975,1781539832000,-2985.84029081,0.00012109,2]
[425124986,1781539832000,-163.68,0.00012129,2]
[425124989,1781539832000,-20000.0,0.000123,2]
[425124988,1781539832000,-433.0,0.00012216,2]
[425124984,1781539832000,-10512.93562206,0.00012121,2]
[425124991,1781539832000,-790.61514285,0.00012393,2]
[425124978,1781539832000,-5267.37619595,0.00012109,2]
[425124980,1781539832000,-7879.67976807,0.00012109,2]
[425124990,1781539832000,-182.83,0.00012329,2]
[425124973,1781539832000,-300.0,0.00011967,2]
[425125059,1781539832000,-7079.07681694,0.00013651,2]
[425124993,1781539832000,-293.229754,0.00012405,2]
[425125003,1781539832000,-7079.07681699,0.00012651,2]
[425125001,1781539832000,-664.57885316,0.00012568,2]
[425124994,1781539832000,-227.475203,0.00012405,2]
[425125000,1781539832000,-306.79001134,0.00012568,2]
[425124995,1781539832000,-283.406962,0.00012405,2]
[425124999,1781539832000,-734.09425913,0.00012559,2]
[425124998,1781539832000,-355.82807652,0.00012497,7]
[425125004,1781539832000,-1094.88498598,0.00012658,3]
[425124996,1781539832000,-250.0,0.00012416,2]
[425125002,1781539832000,-10512.93562206,0.00012584,2]
[425124982,1781539832000,-10661.4783,0.00012109,2]
[425124992,1781539832000,-3451.0,0.000124,2]
[425124965,1781539832000,-300.0,0.00011863,2]
[425124967,1781539832000,-153.52286706,0.00011892,2]
[425124919,1781539832000,-300.0,0.00011061,2]
[425124926,1781539832000,-10512.93562206,0.00011195,2]
[425124920,1781539832000,-166.66,0.00011068,2]
[425124921,1781539832000,-5935.55197036,0.00011099,2]
[425124922,1781539832000,-4577.3836517,0.00011099,2]
[425124924,1781539832000,-255.0,0.00011114,2]
[425124923,1781539832000,-1131.42189844,0.00011109,2]
[425124925,1781539832000,-166.66,0.00011178,2]
[425124927,1781539832000,-154.17,0.00011251,2]
[425124931,1781539832000,-3502.38,0.00011311,2]
[425124929,1781539832000,-166.66,0.00011288,2]
[425124997,1781539832000,-163.68,0.00012493,2]
[425124935,1781539832000,-163.68,0.00011401,2]
[425124933,1781539832000,-166.66,0.00011397,2]
[425124944,1781539832000,-3502.38,0.00011574,2]
[425124939,1781539832000,-500.0,0.00011476,2]
[425124942,1781539832000,-166.66,0.00011507,2]
[425124948,1781539832000,-1385.09030041,0.00011652,2]
[425124946,1781539832000,-2000.0,0.00011623,2]
[425124950,1781539832000,-1117.1419615,0.00011652,2]
[425124952,1781539832000,-10512.93562206,0.00011658,2]
[425124959,1781539832000,-1197.35,0.00011736,2]
[425124955,1781539832000,-160.0,0.00011668,2]
[425124957,1781539832000,-2500.0,0.000117,2]
[425124937,1781539832000,-250.0,0.00011476,2]
[425125005,1781539832000,-790.6151428,0.00012751,2]
[425124963,1781539832000,-237.21871766,0.00011802,7]
[425125006,1781539832000,-33290.518,0.00012793,2]
[425125038,1781539832000,-500.0,0.00013446,2]
[425125034,1781539832000,-150.0,0.00013446,2]
[425125037,1781539832000,-166.0,0.00013446,2]
[425125036,1781539832000,-150.0,0.00013446,2]
[425125041,1781539832000,-235.52192307,0.00013446,2]
[425125051,1781539832000,-10512.93562206,0.00013511,2]
[425125042,1781539832000,-150.0,0.00013446,2]
[425125045,1781539832000,-500.0,0.00013446,2]
[425125046,1781539832000,-500.0,0.00013446,2]
[425125049,1781539832000,-559.62087987,0.00013446,2]
[425125040,1781539832000,-500.0,0.00013446,2]
[425125048,1781539832000,-500.0,0.00013446,2]
[425125043,1781539832000,-500.0,0.00013446,2]
[425125047,1781539832000,-500.0,0.00013446,2]
[425125050,1781539832000,-790.6151428,0.00013467,2]
[425125044,1781539832000,-555.55214773,0.00013446,2]
[425125052,1781539832000,-300.29,0.00013531,2]
[425125053,1781539832000,-512.13,0.00013608,2]
[425125054,1781539832000,-757.39,0.00013608,2]
[425125055,1781539832000,-5742.96,0.00013608,2]
[425125057,1781539832000,-300.29,0.00013643,2]
[425125056,1781539832000,-507.88,0.00013608,2]
[425125058,1781539832000,-815.84846529,0.00013648,2]
[425125060,1781539832000,-318.98,0.00013687,2]
[425125008,1781539832000,-276.12,0.00012877,2]
[425125033,1781539832000,-502.28735956,0.00013446,2]
[425125031,1781539832000,-152.0,0.00013441,2]
[425124961,1781539832000,-163.68,0.00011765,2]
[425125015,1781539832000,-500.0,0.00013205,2]
[425125010,1781539832000,-2000.0,0.00012914,2]
[425125007,1781539832000,-163.68,0.00012858,2]
[425125009,1781539832000,-7079.07681694,0.00012901,2]
[425125011,1781539832000,-1197.35,0.0001304,2]
[425125013,1781539832000,-790.6151428,0.00013109,2]
[425125012,1781539832000,-10512.93562206,0.00013048,2]
[425125030,1781539832000,-152.0,0.00013441,2]
[425125014,1781539832000,-7079.07681694,0.00013151,2]
[425125016,1781539832000,-2549.59,0.0001326,2]
[425125017,1781539832000,-300.29,0.00013263,2]
[425125019,1781539832000,-500.0,0.00013263,2]
[425125020,1781539832000,-318.98,0.00013266,2]
[425125018,1781539832000,-500.0,0.00013263,2]
[425125022,1781539832000,-4110.0,0.00013308,5]
[425125035,1781539832000,-150.0,0.00013446,2]
[425125039,1781539832000,-500.0,0.00013446,2]
[425125032,1781539832000,-500.0,0.00013446,2]
[425125021,1781539832000,-353.56,0.00013274,2]
[425125029,1781539832000,-152.0,0.00013441,2]
[425125028,1781539832000,-152.0,0.00013441,2]
[425125026,1781539832000,-236.093517,0.00013424,2]
[425125025,1781539832000,-304.3393,0.00013424,2]
[425125024,1781539832000,-736.0,0.0001342,2]
[425125023,1781539832000,-7079.07681694,0.00013401,2]
[425125027,1781539832000,-152.0,0.00013441,2]
[425125103,1781539833000,-500.0,0.00013698,2]
[425125110,1781539833000,-500.0,0.00013698,2]
[425125100,1781539833000,-500.0,0.00013698,2]
[425125111,1781539833000,-500.0,0.00013698,2]
[425125094,1781539833000,-500.0,0.00013698,2]
[425125116,1781539833000,-500.0,0.00013698,2]
[425125090,1781539833000,-500.0,0.00013698,2]
[425125089,1781539833000,-500.0,0.00013698,2]
[425125098,1781539833000,-500.0,0.00013698,2]
[425125097,1781539833000,-500.0,0.00013698,2]
[425125099,1781539833000,-500.0,0.00013698,2]
[425125091,1781539833000,-500.0,0.00013698,2]
[425125109,1781539833000,-500.0,0.00013698,2]
[425125120,1781539833000,-500.0,0.00013698,2]
[425125102,1781539833000,-500.0,0.00013698,2]
[425125106,1781539833000,-500.0,0.00013698,2]
[425125107,1781539833000,-514.84380514,0.00013698,2]
[425125108,1781539833000,-500.0,0.00013698,2]
[425125104,1781539833000,-500.0,0.00013698,2]
[425125105,1781539833000,-504.7229529,0.00013698,2]
[425125112,1781539833000,-340.67228212,0.00013698,2]
[425125117,1781539833000,-500.0,0.00013698,2]
[425125114,1781539833000,-500.0,0.00013698,2]
[425125115,1781539833000,-500.0,0.00013698,2]
[425125093,1781539833000,-500.0,0.00013698,2]
[425125113,1781539833000,-500.0,0.00013698,2]
[425125101,1781539833000,-500.0,0.00013698,2]
[425125092,1781539833000,-154.77,0.00013698,2]
[425125079,1781539833000,-500.0,0.00013698,2]
[425125096,1781539833000,-500.0,0.00013698,2]
[425125061,1781539833000,-500.0,0.00013698,2]
[425125062,1781539833000,-500.0,0.00013698,2]
[425125065,1781539833000,-500.0,0.00013698,2]
[425125063,1781539833000,-500.0,0.00013698,2]
[425125066,1781539833000,-500.0,0.00013698,2]
[425125070,1781539833000,-185.14764343,0.00013698,2]
[425125064,1781539833000,-500.0,0.00013698,2]
[425125068,1781539833000,-500.0,0.00013698,2]
[425125071,1781539833000,-500.0,0.00013698,2]
[425125072,1781539833000,-500.0,0.00013698,2]
[425125074,1781539833000,-500.0,0.00013698,2]
[425125067,1781539833000,-490.66911066,0.00013698,2]
[425125095,1781539833000,-500.0,0.00013698,2]
[425125073,1781539833000,-500.0,0.00013698,2]
[425125078,1781539833000,-500.0,0.00013698,2]
[425125082,1781539833000,-500.0,0.00013698,2]
[425125083,1781539833000,-500.0,0.00013698,2]
[425125086,1781539833000,-500.0,0.00013698,2]
[425125080,1781539833000,-500.0,0.00013698,2]
[425125077,1781539833000,-500.0,0.00013698,2]
[425125081,1781539833000,-500.0,0.00013698,2]
[425125085,1781539833000,-500.0,0.00013698,2]
[425125084,1781539833000,-500.0,0.00013698,2]
[425125076,1781539833000,-500.0,0.00013698,2]
[425125087,1781539833000,-500.0,0.00013698,2]
[425125088,1781539833000,-500.0,0.00013698,2]
[425125075,1781539833000,-500.0,0.00013698,2]
[425125069,1781539833000,-500.0,0.00013698,2]
[425125118,1781539833000,-303.91251271,0.00013698,2]
[425125119,1781539833000,-500.0,0.00013698,2]
[425125149,1781539833000,-300.29,0.00014154,2]
[425125155,1781539833000,-2549.59,0.00014247,2]
[425125152,1781539833000,-2000.0,0.00014206,2]
[425125156,1781539833000,-353.56,0.00014262,2]
[425125157,1781539833000,-300.29,0.00014268,2]
[425125154,1781539833000,-300.29,0.00014232,2]
[425125160,1781539833000,-300.29,0.00014303,2]
[425125162,1781539833000,-5587.73,0.0001433,2]
[425125166,1781539833000,-318.98,0.0001438,2]
[425125161,1781539833000,-815.84846529,0.00014324,2]
[425125171,1781539833000,-318.98,0.00014457,2]
[425125163,1781539833000,-300.29,0.00014338,2]
[425125164,1781539833000,-1197.35,0.00014344,2]
[425125165,1781539833000,-300.29,0.00014371,2]
[425125167,1781539833000,-7079.07681694,0.000144,2]
[425125168,1781539833000,-300.29,0.00014403,2]
[425125170,1781539833000,-10512.93562206,0.00014437,2]
[425125172,1781539833000,-300.29,0.00014464,2]
[425125177,1781539833000,-150.99,0.00014504,2]
[425125175,1781539833000,-500.0,0.00014502,2]
[425125174,1781539833000,-300.29,0.00014494,2]
[425125173,1781539833000,-353.56,0.00014484,2]
[425125179,1781539833000,-1986.04,0.00014504,2]
[425125178,1781539833000,-9314.44,0.00014504,2]
[425125176,1781539833000,-500.0,0.00014504,2]
[425125180,1781539833000,-19602.38,0.00014504,2]
[425125123,1781539833000,-500.0,0.00013698,2]
[425125151,1781539833000,-300.29,0.00014194,2]
[425125150,1781539833000,-790.6151428,0.00014184,2]
[425125169,1781539833000,-300.29,0.00014434,2]
[425125159,1781539833000,-318.98,0.00014297,2]
[425125153,1781539833000,-318.98,0.00014208,2]
[425125121,1781539833000,-500.0,0.00013698,2]
[425125122,1781539833000,-500.0,0.00013698,2]
[425125125,1781539833000,-500.0,0.00013698,2]
[425125135,1781539833000,-318.98,0.00013861,2]
[425125124,1781539833000,-500.0,0.00013698,2]
[425125128,1781539833000,-200.0,0.00013699,2]
[425125127,1781539833000,-2500.0,0.00013699,2]
[425125134,1781539833000,-790.6151428,0.00013826,2]
[425125130,1781539833000,-306.79001132,0.00013734,2]
[425125132,1781539833000,-664.57885313,0.0001379,2]
[425125129,1781539833000,-300.29,0.00013728,2]
[425125131,1781539833000,-333.618926,0.00013759,2]
[425125133,1781539833000,-300.29,0.000138,2]
[425125126,1781539833000,-500.0,0.00013698,2]
[425125137,1781539833000,-7079.07681694,0.000139,2]
[425125158,1781539833000,-350.0,0.00014278,2]
[425125146,1781539833000,-318.98,0.00014108,2]
[425125148,1781539833000,-7079.07681694,0.0001415,2]
[425125144,1781539833000,-300.29,0.00014023,2]
[425125145,1781539833000,-300.29,0.00014069,2]
[425125142,1781539833000,-815.84846529,0.00013986,2]
[425125143,1781539833000,-318.98,0.00013995,2]
[425125141,1781539833000,-10512.93562206,0.00013974,2]
[425125139,1781539833000,-353.56,0.00013973,2]
[425125136,1781539833000,-300.29,0.00013864,2]
[425125138,1781539833000,-300.29,0.00013921,2]
[425125147,1781539833000,-300.29,0.00014112,2]
[425125140,1781539833000,-300.29,0.00013974,2]
[425125203,1781539834000,-445.64,0.00014673,2]
[425125209,1781539834000,-466.0,0.00014726,2]
[425125201,1781539834000,-2000.0,0.00014664,2]
[425125202,1781539834000,-353.56,0.00014671,2]
[425125200,1781539834000,-318.98,0.00014662,2]
[425125204,1781539834000,-445.65,0.00014674,2]
[425125206,1781539834000,-550.704,0.00014685,2]
[425125218,1781539834000,-466.0,0.00014726,2]
[425125214,1781539834000,-466.0,0.00014726,2]
[425125210,1781539834000,-466.0,0.00014726,2]
[425125212,1781539834000,-466.0,0.00014726,2]
[425125213,1781539834000,-466.0,0.00014726,2]
[425125208,1781539834000,-466.0,0.00014726,2]
[425125215,1781539834000,-466.0,0.00014726,2]
[425125217,1781539834000,-466.0,0.00014726,2]
[425125196,1781539834000,-7079.07681694,0.0001465,2]
[425125216,1781539834000,-466.0,0.00014726,2]
[425125211,1781539834000,-466.0,0.00014726,2]
[425125207,1781539834000,-350.0,0.00014705,2]
[425125186,1781539834000,-7483.83,0.00014504,2]
[425125199,1781539834000,-815.84846529,0.00014662,2]
[425125219,1781539834000,-466.0,0.00014726,2]
[425125183,1781539834000,-9999.99,0.00014504,2]
[425125184,1781539834000,-9999.99,0.00014504,2]
[425125182,1781539834000,-9999.99,0.00014504,2]
[425125181,1781539834000,-214.73,0.00014504,2]
[425125189,1781539834000,-790.6151428,0.00014542,2]
[425125188,1781539834000,-318.98,0.00014529,2]
[425125185,1781539834000,-9999.99,0.00014504,2]
[425125187,1781539834000,-300.29,0.00014523,2]
[425125190,1781539834000,-300.29,0.00014551,2]
[425125192,1781539834000,-318.98,0.00014597,2]
[425125193,1781539834000,-300.29,0.00014606,2]
[425125191,1781539834000,-300.29,0.00014579,2]
[425125194,1781539834000,-1500.0,0.0001463,2]
[425125195,1781539834000,-300.29,0.00014633,2]
[425125198,1781539834000,-300.29,0.00014659,2]
[425125205,1781539834000,-7713.815,0.00014685,2]
[425125197,1781539834000,-2549.59,0.00014656,2]
[425125222,1781539834000,-466.0,0.00014726,2]
[425125224,1781539834000,-466.0,0.00014726,2]
[425125220,1781539834000,-466.0,0.00014726,2]
[425125244,1781539834000,-500.0,0.00014831,2]
[425125255,1781539834000,-503.57198463,0.00014868,2]
[425125247,1781539834000,-500.0,0.00014831,2]
[425125246,1781539834000,-500.0,0.00014831,2]
[425125249,1781539834000,-500.0,0.00014831,2]
[425125248,1781539834000,-500.0,0.00014831,2]
[425125250,1781539834000,-500.0,0.00014831,2]
[425125253,1781539834000,-38446.89327528,0.0001485,2]
[425125245,1781539834000,-651.33,0.00014831,2]
[425125251,1781539834000,-500.0,0.00014831,2]
[425125256,1781539834000,-500.0,0.00014868,2]
[425125258,1781539834000,-500.0,0.00014871,2]
[425125257,1781539834000,-500.22762284,0.00014868,2]
[425125260,1781539834000,-1619.60867713,0.00014881,2]
[425125259,1781539834000,-200.0,0.0001488,2]
[425125261,1781539834000,-500.0,0.00014886,2]
[425125221,1781539834000,-466.0,0.00014726,2]
[425125262,1781539834000,-500.0,0.00014886,2]
[425125254,1781539834000,-2548.43696169,0.0001485,2]
[425125241,1781539834000,-1252.0,0.00014754,2]
[425125252,1781539834000,-500.0,0.00014831,2]
[425125240,1781539834000,-902.587,0.00014726,2]
[425125242,1781539834000,-350.0,0.00014778,2]
[425125223,1781539834000,-466.0,0.00014726,2]
[425125230,1781539834000,-466.0,0.00014726,2]
[425125225,1781539834000,-466.0,0.00014726,2]
[425125229,1781539834000,-466.0,0.00014726,2]
[425125227,1781539834000,-466.0,0.00014726,2]
[425125231,1781539834000,-468.48877466,0.00014726,2]
[425125228,1781539834000,-466.0,0.00014726,2]
[425125226,1781539834000,-466.0,0.00014726,2]
[425125233,1781539834000,-778.0,0.00014726,2]
[425125234,1781539834000,-778.0,0.00014726,2]
[425125239,1781539834000,-778.0,0.00014726,2]
[425125235,1781539834000,-778.0,0.00014726,2]
[425125237,1781539834000,-778.0,0.00014726,2]
[425125243,1781539834000,-350.0,0.00014778,2]
[425125238,1781539834000,-778.0,0.00014726,2]
[425125232,1781539834000,-778.0,0.00014726,2]
[425125236,1781539834000,-778.0,0.00014726,2]
[425125295,1781539835000,-500.0,0.00014943,2]
[425125298,1781539835000,-268.06129672,0.00014943,2]
[425125299,1781539835000,-298.46828582,0.00014943,2]
[425125296,1781539835000,-500.0,0.00014943,2]
[425125292,1781539835000,-651.33,0.00014943,2]
[425125297,1781539835000,-500.0,0.00014943,2]
[425125300,1781539835000,-500.0,0.00014943,2]
[425125301,1781539835000,-500.0,0.00014943,2]
[425125293,1781539835000,-651.33,0.00014943,2]
[425125294,1781539835000,-500.0,0.00014943,2]
[425125302,1781539835000,-500.0,0.00014943,2]
[425125310,1781539835000,-152.3,0.00014985,2]